bitfinex/quotes_ETHUSD_20260217
["timestamp","ask_amount","ask_price","bid_price","bid_amount"]
[1771339292991,0.49222242,1975.5,1973.9,2.23952819]
[1771339293376,0.49222242,1975.5,1974.0,2.0]
[1771339293572,1.26531025,1975.8,1974.0,2.0]
[1771339293775,6.55940449,1975.9,1974.3,7.24929023]
[1771339293776,1.75746926,1975.9,1974.3,7.24929023]
[1771339294072,1.75746926,1975.9,1974.4,2.0]
[1771339294902,1.75746926,1975.9,1974.5,1.26614332]
[1771339295091,1.75746926,1975.9,1974.6,1.885]
[1771339295272,1.26629451,1976.0,1974.7,2.0]
[1771339295473,0.0011,1976.0,1974.7,2.46529802]
[1771339295684,1.26630906,1976.0,1974.5,1.26614332]
[1771339295907,1.26630906,1976.0,1974.7,2.0]
[1771339296403,1.26630906,1976.0,1974.6,1.883]
[1771339297272,0.0011,1976.0,1974.7,1.26601509]
[1771339298305,0.49222242,1975.8,1974.7,1.26601509]
[1771339298674,0.0011,1976.0,1974.7,1.26601509]
[1771339298875,2.94822673,1975.9,1974.7,1.26601509]
[1771339299102,0.0011,1976.0,1974.7,1.26601509]
[1771339299604,0.0011,1976.0,1974.7,2.0]
[1771339300701,2.95446804,1975.9,1974.7,0.967]
[1771339301129,0.49222242,1975.7,1974.5,0.912]
[1771339301281,0.49222242,1975.3,1973.7,1.26665653]
[1771339301615,1.26543834,1975.6,1973.9,0.46529802]
[1771339301779,1.26543834,1975.6,1973.7,1.26665653]
[1771339301780,0.49222242,1975.4,1974.0,0.967]
[1771339301980,2.95879986,1975.3,1974.7,0.001]
[1771339302181,2.95879986,1975.2,1974.7,0.001]
[1771339302387,2.95879986,1975.1,1974.7,0.001]
[1771339302587,2.95879986,1975.0,1974.7,0.001]
[1771339302788,0.49222242,1975.4,1974.7,0.001]
[1771339303008,1.26543834,1975.6,1974.7,0.001]
[1771339303009,3.45379741,1975.3,1974.7,0.001]
[1771339303202,2.96157499,1975.2,1974.7,0.001]
[1771339303399,2.96157499,1975.1,1974.7,0.001]
[1771339303600,2.96157499,1975.0,1974.7,0.001]
[1771339304097,3.45379741,1974.9,1973.1,6.78427525]
[1771339304312,0.49254043,1974.5,1973.3,1.878]
[1771339304502,0.49254043,1974.3,1973.3,1.878]
[1771339304819,1.75804283,1975.5,1973.6,2.49329899]
[1771339304993,4.87320333,1975.4,1973.8,2.0]
[1771339305196,3.45574376,1975.3,1973.7,0.965]
[1771339305391,2.96320333,1975.2,1973.7,0.965]
[1771339305702,6.63154639,1975.1,1973.8,1.26659235]
[1771339305902,0.49254043,1974.9,1973.7,1.26660782]
[1771339306107,4.87220333,1974.8,1973.7,1.26660782]
[1771339306302,2.96320333,1974.7,1973.7,1.26660782]
[1771339306507,2.96320333,1974.6,1973.7,1.26660782]
[1771339306719,0.997,1974.7,1973.7,1.26660782]
[1771339306908,2.832046,1974.6,1973.8,2.0]
[1771339307112,0.49254043,1975.3,1973.8,2.0]
[1771339307422,2.8326155,1975.2,1973.9,2.0]
[1771339307618,2.8326155,1975.2,1974.0,1.26946403]
[1771339307822,0.49254043,1975.1,1974.0,1.26946403]
[1771339308025,0.49254043,1974.9,1974.0,1.26946403]
[1771339308223,3.32515593,1974.8,1974.0,0.003]
[1771339308422,0.49254043,1974.4,1973.0,1.26710593]
[1771339308735,3.7446155,1974.3,1973.0,1.26710593]
[1771339308905,2.8326155,1974.2,1973.0,1.26710593]
[1771339309100,1.75823529,1975.2,1973.1,0.49329899]
[1771339309299,0.49254043,1975.2,1973.9,2.0]
[1771339309508,7.2165341,1975.8,1973.9,2.0]
[1771339309509,0.49254043,1975.1,1973.9,2.0]
[1771339309719,0.49254043,1975.1,1974.0,1.26646403]
[1771339310701,0.49254043,1975.0,1974.0,1.26646403]
[1771339310896,0.49254043,1975.0,1973.9,1.26648243]
[1771339311221,0.49254043,1975.0,1973.8,1.26656609]
[1771339311422,0.49254043,1974.8,1973.8,1.26656609]
[1771339311622,0.49254043,1974.7,1973.5,5.06636943]
[1771339311997,0.49254043,1974.7,1973.4,1.26684909]
[1771339313039,0.49646615,1974.5,1973.4,1.26684909]
[1771339314028,1.76262249,1974.5,1973.4,1.26684909]
[1771339314195,0.49646615,1974.4,1973.4,1.26684909]
[1771339314396,0.49646615,1974.8,1973.5,7.2165341]
[1771339314811,0.49646615,1974.8,1973.5,2.0]
[1771339315691,0.49646615,1974.6,1973.5,2.0]
[1771339315904,0.49646615,1974.2,1972.8,2.0]
[1771339316242,0.49646615,1974.1,1973.5,0.001]
[1771339316741,1.904,1974.0,1973.5,0.001]
[1771339316939,0.991,1974.0,1973.5,0.001]
[1771339317113,0.0011,1974.6,1973.5,0.001]
[1771339317513,0.0011,1974.6,1973.7,2.0]
[1771339317821,0.0011,1974.6,1973.8,1.26659235]
[1771339320474,0.49756615,1974.6,1973.7,1.26662846]
[1771339320610,0.49756615,1974.6,1973.6,5.06675965]
[1771339320611,0.49756615,1974.6,1973.6,1.26666843]
[1771339320945,0.49756615,1974.6,1973.5,1.26773738]
[1771339321240,2.39756615,1974.6,1973.5,1.26773738]
[1771339321411,0.49646615,1974.5,1973.5,1.26773738]
[1771339321808,1.76263868,1974.5,1973.5,0.001]
[1771339322002,3.16718648,1974.6,1973.5,0.001]
[1771339322406,0.49646615,1974.5,1973.5,0.001]
[1771339323312,1.899,1974.4,1973.5,0.001]
[1771339323527,1.26718648,1974.6,1973.7,7.2165341]
[1771339323528,0.0011,1974.6,1973.7,7.2165341]
[1771339323722,0.0011,1974.6,1974.0,7.2165341]
[1771339324048,0.0011,1974.6,1974.1,1.26639987]
[1771339325820,0.0011,1974.6,1973.8,5.06636776]
[1771339325821,0.0011,1974.6,1973.9,5.06559951]
[1771339326020,0.0011,1974.6,1974.0,2.0]
[1771339326334,0.913,1975.7,1974.3,2.0]
[1771339326661,0.0011,1975.9,1974.5,7.2165341]
[1771339326831,1.76282147,1975.9,1974.6,0.956]
[1771339327211,0.49646615,1975.7,1974.4,0.913]
[1771339327671,0.49646615,1975.5,1974.4,0.913]
[1771339328046,1.26556646,1975.4,1974.5,1.26614332]
[1771339328425,3.65601868,1975.5,1974.5,1.26614332]
[1771339328624,3.65601868,1975.5,1974.4,5.9775733]
[1771339328625,0.49646615,1975.4,1974.4,2.17917198]
[1771339328973,0.49646615,1974.9,1973.6,1.26672071]
[1771339329882,0.912,1975.3,1974.0,2.0]
[1771339330023,0.912,1975.3,1973.6,8.48325481]
[1771339330024,0.49646615,1975.2,1973.7,2.0]
[1771339330338,0.49646615,1975.1,1973.7,2.0]
[1771339330844,0.49646615,1975.1,1973.8,2.0]
[1771339331046,0.49646615,1975.1,1973.7,2.0]
[1771339331282,3.15570465,1975.2,1973.7,2.0]
[1771339331459,0.49646615,1975.5,1973.7,2.46732036]
[1771339331633,1.26657219,1975.6,1974.2,2.0]
[1771339331972,0.49646615,1975.5,1974.2,0.951]
[1771339332212,0.0011,1975.6,1974.4,9.68385446]
[1771339332485,0.0011,1975.9,1975.1,2.0]
[1771339332628,0.0011,1975.9,1975.2,2.0]
[1771339333651,1.26457095,1977.0,1975.6,2.0]
[1771339333828,5.05926894,1977.1,1975.6,2.0]
[1771339333829,0.0011,1977.1,1976.1,7.2165341]
[1771339334034,0.0011,1977.1,1976.2,1.26505414]
[1771339334236,0.0011,1977.4,1976.5,2.0]
[1771339334784,0.0011,1977.4,1976.3,0.951]
[1771339335183,0.912,1977.3,1976.1,1.26508404]
[1771339335348,0.0011,1977.4,1976.1,1.26508404]
[1771339335553,1.36613703,1977.4,1976.1,1.26508404]
[1771339336061,2.17635037,1977.3,1976.0,5.06056696]
[1771339336268,2.6293874,1977.3,1976.0,5.06056696]
[1771339336458,0.0011,1977.4,1976.0,5.06056696]
[1771339336791,1.26539799,1977.4,1976.0,5.06056696]
[1771339337558,0.45303703,1977.3,1976.0,5.06056696]
[1771339337979,0.45303703,1977.1,1975.6,1.26543834]
[1771339338255,0.45303703,1976.7,1975.6,1.26543834]
[1771339338516,1.36503703,1976.6,1975.6,1.26543834]
[1771339338791,0.912,1976.5,1975.3,1.26563053]
[1771339338993,0.45303703,1976.4,1975.3,1.26563053]
[1771339339488,0.45303703,1976.8,1975.3,1.26563053]
[1771339339684,1.884,1976.7,1975.3,1.26563053]
[1771339340279,0.45303703,1976.5,1975.1,5.06252214]
[1771339340872,0.45303703,1976.5,1975.0,1.26578321]
[1771339341295,0.45303703,1976.5,1974.9,1.26582656]
[1771339341296,0.45303703,1976.3,1974.9,1.26582656]
[1771339341968,0.45303703,1976.1,1974.9,1.26582656]
[1771339342171,1.26518218,1976.0,1974.7,5.06395349]
[1771339342575,2.23418218,1976.0,1974.7,5.06395349]
[1771339342780,0.912,1975.9,1974.7,5.06395349]
[1771339342975,1.26518218,1976.0,1974.7,5.06395349]
[1771339343195,0.45303703,1975.8,1974.7,1.26601509]
[1771339343579,0.45303703,1975.8,1974.6,2.21303186]
[1771339343789,2.33303703,1975.7,1974.6,1.26603186]
[1771339344103,0.45303703,1975.6,1974.6,1.26603186]
[1771339344270,0.45303703,1975.6,1974.5,5.06548936]
[1771339344271,1.71853943,1975.5,1974.5,0.001]
[1771339344706,0.45303703,1975.4,1974.5,0.001]
[1771339346071,0.45303703,1975.2,1974.5,0.001]
[1771339346192,0.45303703,1975.2,1974.2,0.001]
[1771339346193,0.45303703,1975.0,1974.2,0.001]
[1771339346992,1.878,1974.9,1974.2,0.001]
[1771339347205,2.33103703,1974.9,1974.2,0.001]
[1771339347675,1.878,1974.8,1974.2,0.001]
[1771339347879,0.45303703,1974.5,1973.5,0.001]
[1771339348317,0.45303703,1974.3,1973.5,0.001]
[1771339348475,1.879,1974.2,1973.5,0.001]
[1771339348876,1.879,1974.1,1973.5,0.001]
[1771339349178,0.45303703,1974.3,1973.5,0.001]
[1771339349383,1.878,1974.2,1973.5,0.001]
[1771339349874,1.26620745,1974.4,1973.5,0.001]
[1771339350279,0.965,1974.4,1973.5,0.001]
[1771339350480,1.2660792,1974.6,1973.5,0.001]
[1771339350702,1.877,1974.5,1973.5,0.001]
[1771339351487,0.965,1974.5,1973.5,0.001]
[1771339351683,1.71882085,1975.1,1973.6,2.0]
[1771339351883,0.964,1975.0,1973.6,2.0]
[1771339352083,5.06303478,1975.2,1973.5,0.001]
[1771339352084,5.51456319,1975.7,1973.8,2.47624954]
[1771339352288,0.45303703,1975.3,1973.9,1.26652819]
[1771339352691,2.33003703,1975.2,1973.9,1.26652819]
[1771339352913,0.45303703,1975.1,1973.9,1.26652819]
[1771339353117,2.33003703,1975.1,1973.9,1.26652819]
[1771339353286,2.33003703,1975.1,1973.6,1.26672071]
[1771339353287,0.45303703,1974.9,1973.6,1.26672071]
[1771339353897,0.45303703,1974.7,1973.5,1.26775258]
[1771339354421,0.45303703,1974.5,1973.5,1.26775258]
[1771339354787,0.45303703,1974.5,1973.5,0.001]
[1771339355232,1.875,1974.4,1973.5,0.001]
[1771339355413,2.32803703,1974.3,1973.5,0.001]
[1771339355613,0.45303703,1974.3,1973.5,0.001]
[1771339355807,1.875,1974.2,1973.5,0.001]
[1771339356018,0.45303703,1973.5,1972.7,0.003]
[1771339356311,0.45303703,1973.5,1972.0,0.003]
[1771339356312,0.45303703,1973.3,1972.0,0.003]
[1771339356513,7.47366212,1973.3,1972.0,0.003]
[1771339356700,1.876,1973.2,1972.0,0.003]
[1771339356902,2.079678,1973.1,1972.0,0.003]
[1771339357303,1.876,1973.2,1972.0,0.003]
[1771339357304,2.32903703,1973.2,1972.0,0.003]
[1771339357482,2.32903703,1973.1,1972.0,0.003]
[1771339359011,3.14310593,1973.0,1972.0,0.003]
[1771339359214,0.963,1972.9,1972.0,0.003]
[1771339359412,0.45303703,1972.8,1972.0,0.003]
[1771339359616,1.26710593,1973.0,1972.0,0.003]
[1771339359914,1.876,1972.7,1972.0,0.003]
[1771339360423,2.32903703,1972.7,1972.0,0.003]
[1771339360626,8.328065,1972.1,1970.9,0.912]
[1771339360822,0.45303703,1971.5,1969.9,1.26909995]
[1771339360985,0.45303703,1971.3,1969.6,5.5531959]
[1771339361188,0.45303703,1971.3,1969.8,0.47624954]
[1771339361189,6.79842668,1971.3,1969.8,0.47624954]
[1771339361390,6.79842668,1971.3,1969.6,5.07694636]
[1771339361391,8.569177,1971.1,1969.6,5.07694636]
[1771339361595,20.10132903,1970.8,1969.5,0.94603808]
[1771339361840,15.28126303,1970.4,1969.5,0.94603808]
[1771339361986,1.88,1970.3,1969.5,0.88603808]
[1771339362192,0.45303703,1970.9,1969.5,2.15539564]
[1771339362704,1.881,1970.8,1969.5,2.15539564]
[1771339363027,1.26858476,1970.7,1969.5,2.15539127]
[1771339363235,1.26858476,1970.7,1968.8,11.87744004]
[1771339363236,0.45303703,1970.2,1968.3,0.00725617]
[1771339363394,6.79842668,1969.5,1968.3,0.00725617]
[1771339363593,6.79842668,1969.5,1968.3,1.2773735]
[1771339363891,11.219352,1969.7,1968.3,1.2773735]
[1771339364235,0.972,1969.9,1968.3,1.2773735]
[1771339364397,4.005723,1969.7,1968.3,1.2773735]
[1771339364598,18.964629,1969.5,1968.3,0.00725617]
[1771339364797,6.82275909,1969.8,1968.3,1.27737278]
[1771339364798,0.1024,1969.8,1968.3,1.27737278]
[1771339365008,0.974,1969.7,1968.3,1.27737278]
[1771339365230,1.26916438,1969.8,1968.3,1.27737278]
[1771339365448,8.56025389,1970.0,1968.3,1.27737278]
[1771339365620,1.26904044,1970.0,1968.3,1.76311315]
[1771339365810,1.888,1969.9,1968.3,1.76311315]
[1771339366013,1.26906907,1970.0,1968.3,1.76311315]
[1771339366213,5.07569678,1970.2,1968.5,0.48574037]
[1771339366415,0.975,1970.2,1968.8,2.48574037]
[1771339366639,1.889,1970.2,1968.9,0.48574037]
[1771339366954,1.26897111,1970.1,1968.5,1.27000254]
[1771339367158,6.284069,1970.0,1968.4,1.27002162]
[1771339367320,6.82275909,1969.2,1968.0,0.1353791]
[1771339367508,1.889,1969.1,1968.0,1.40570009]
[1771339367712,0.1024,1969.9,1968.0,1.40570009]
[1771339367908,8.20021352,1968.7,1967.1,1.27085825]
[1771339368143,16.517623,1968.7,1967.2,0.48574037]
[1771339368316,6.82275909,1968.8,1967.0,0.48574037]
[1771339368518,2.35642452,1968.7,1966.8,1.27110026]
[1771339368715,6.82275909,1968.4,1966.8,1.27110026]
[1771339369042,3.16313158,1968.3,1966.7,2.0]
[1771339369244,1.27000254,1968.5,1966.8,0.48574037]
[1771339369453,1.27000254,1968.5,1966.4,5.08500843]
[1771339369454,0.46842452,1966.9,1964.7,1.52713334]
[1771339369740,0.46842452,1966.3,1964.7,1.52547543]
[1771339369977,7.29118361,1966.8,1964.7,1.52547543]
[1771339370146,2.0,1964.9,1964.7,1.52547543]
[1771339370334,2.0,1965.2,1964.7,2.79789906]
[1771339370735,1.899,1965.7,1964.6,2.24968034]
[1771339371067,1.27178332,1965.8,1964.6,2.24968034]
[1771339371369,0.1024,1966.4,1964.6,2.24968034]
[1771339371370,0.985,1966.4,1964.8,0.48574037]
[1771339371531,0.914,1966.9,1966.6,0.001]
[1771339371730,1.2708418,1967.2,1966.6,0.001]
[1771339371965,0.1024,1967.0,1965.2,0.48574037]
[1771339372168,9.277993,1966.9,1964.8,2.40814]
[1771339372331,9.277993,1966.9,1964.9,2.316077]
[1771339372332,2.412446,1966.7,1964.9,2.316077]
[1771339372665,2.412446,1966.7,1964.8,0.4639958]
[1771339372861,5.29133,1966.5,1964.8,0.4639958]
[1771339373028,10.923905,1966.2,1964.6,2.24968034]
[1771339373231,8.87101,1966.0,1964.6,2.24968034]
[1771339373570,1.902,1965.9,1964.6,2.24968034]
[1771339373756,1.27142348,1966.3,1964.6,2.24968034]
[1771339373932,0.1024,1966.2,1964.6,2.24967627]
[1771339374131,21.77616,1966.0,1964.6,2.24963768]
[1771339374460,0.1024,1966.1,1964.6,2.24963768]
[1771339374843,1.27142348,1966.3,1964.6,2.24963768]
[1771339375043,1.27155282,1966.1,1964.6,2.24963768]
[1771339375434,1.27135882,1966.4,1964.6,2.71363348]
[1771339375638,7.264292,1966.2,1964.6,2.71363348]
[1771339375838,1.902,1966.1,1964.6,2.71363348]
[1771339376272,1.901,1966.0,1964.6,2.71363348]
[1771339376561,1.901,1966.2,1964.8,0.4639958]
[1771339376764,2.441,1967.2,1965.6,7.28675489]
[1771339377076,3.1726916,1967.5,1966.0,1.27161749]
[1771339377230,6.82275909,1968.0,1966.0,8.55837238]
[1771339377433,1.27035329,1968.0,1966.5,6.1695648]
[1771339377741,1.27035329,1968.0,1966.5,0.4639958]
[1771339377946,0.916,1967.9,1966.5,0.4639958]
[1771339378130,1.27035329,1968.0,1966.6,6.82275909]
[1771339378335,1.27035329,1968.0,1966.5,0.4639958]
[1771339378572,1.27035329,1968.0,1966.4,1.874]
[1771339378772,1.7756,1967.9,1966.4,0.916]
[1771339378978,5.977964,1967.8,1966.4,0.916]
[1771339379184,28.4,1967.6,1966.5,1.27129417]
[1771339379472,1.27013158,1968.3,1966.5,1.73528997]
[1771339379674,10.890667,1968.1,1966.5,1.27129417]
[1771339379832,7.785732,1967.9,1966.4,2.18733963]
[1771339380049,6.82275909,1968.0,1966.4,0.916]
[1771339380050,1.902,1967.8,1966.4,0.916]
[1771339380277,2.0044,1968.0,1966.4,2.18734736]
[1771339380475,6.152492,1967.9,1966.4,1.27134736]
[1771339380662,1.903,1967.8,1966.4,1.27134736]
[1771339380868,3.240515,1967.7,1965.8,1.27174687]
[1771339381066,1.27058345,1967.6,1965.7,5.08723418]
[1771339381376,3.78365,1967.4,1965.7,5.08723418]
[1771339381580,0.986,1967.5,1965.9,11.305198]
[1771339381874,1.27058345,1967.6,1965.7,5.08723418]
[1771339381875,1.27058345,1967.6,1966.0,7.28675489]
[1771339382063,1.902,1967.9,1966.0,7.28675489]
[1771339382253,4.176208,1967.8,1965.7,5.08723418]
[1771339382454,20.147185,1967.7,1965.7,5.08723418]
[1771339382800,14.71105909,1967.5,1965.7,5.08723418]
[1771339382946,6.82275909,1967.5,1965.7,5.08723418]
[1771339383150,1.27064803,1967.5,1965.8,6.709107]
[1771339383347,1.27064803,1967.5,1965.8,3.98114]
[1771339383601,1.27064803,1967.5,1965.8,2.021101]
[1771339383899,1.27064803,1967.5,1965.7,5.55122998]
[1771339384062,1.27064803,1967.5,1965.8,2.65758]
[1771339384612,5.58037435,1967.8,1966.0,17.4614588]
[1771339384613,0.001,1967.8,1966.0,17.4614588]
[1771339384754,1.27051887,1967.7,1966.3,4.774712]
[1771339384959,1.27051887,1967.7,1966.2,0.4639958]
[1771339384960,6.696811,1967.6,1965.7,11.90999327]
[1771339385161,1.27064803,1967.5,1965.7,11.90999327]
[1771339385670,1.27064803,1967.5,1965.8,3.99277]
[1771339385870,1.27064803,1967.5,1965.9,2.158391]
[1771339386195,5.08259212,1967.7,1966.1,7.28675489]
[1771339386196,5.0823338,1967.7,1966.1,7.28675489]
[1771339386364,5.0823338,1967.7,1965.7,11.90999327]
[1771339386365,0.001,1967.8,1966.5,7.28675489]
[1771339386561,1.27145483,1967.8,1966.5,7.28675489]
[1771339386761,1.27145483,1967.8,1966.3,0.956]
[1771339387002,1.27145483,1967.8,1966.3,1.4199958]
[1771339387158,1.27145483,1967.8,1966.6,1.27122953]
[1771339387159,0.001,1967.8,1966.6,1.27122953]
[1771339387358,0.001,1967.8,1966.4,5.08532546]
[1771339387565,7.624249,1967.7,1966.2,1.27148814]
[1771339387797,0.1034,1967.8,1966.2,1.27148814]
[1771339388099,1.899,1967.7,1966.2,1.27148814]
[1771339388300,11.727867,1967.6,1966.2,1.27148814]
[1771339388513,1.899,1967.7,1966.2,1.27148814]
[1771339389007,2.268133,1967.6,1966.2,1.27148814]
[1771339389189,1.27064803,1967.5,1966.2,1.27148814]
[1771339389773,1.27064803,1967.5,1966.1,2.18750126]
[1771339390687,1.27064803,1967.5,1966.1,2.18753548]
[1771339390879,23.00845223,1967.4,1965.7,5.08721933]
[1771339391093,10.07580923,1967.3,1965.7,1.27181156]
[1771339391295,1.27090641,1967.1,1965.7,1.73580736]
[1771339391494,1.27051887,1967.7,1965.9,0.4639958]
[1771339391703,1.27051887,1967.7,1966.2,0.4639958]
[1771339392073,10.559532,1967.6,1965.7,8.55856645]
[1771339392279,9.16740523,1967.6,1965.7,8.55856645]
[1771339392487,7.810347,1967.6,1966.3,6.82275909]
[1771339392687,1.27148427,1967.8,1966.4,0.4639958]
[1771339392887,0.001,1967.8,1966.4,0.4639958]
[1771339393089,1.27146254,1967.8,1966.6,0.4639958]
[1771339393300,0.001,1967.8,1966.7,8.55791978]
[1771339393574,0.001,1967.8,1966.9,0.4639958]
[1771339394200,0.001,1967.8,1967.0,0.4639958]
[1771339394512,0.001,1967.8,1966.7,1.27116489]
[1771339395314,0.001,1967.8,1966.6,5.08465958]
[1771339396119,0.001,1967.8,1966.5,5.08501608]
[1771339397388,0.001,1967.8,1966.3,5.08565755]
[1771339397595,9.91400366,1967.5,1966.3,0.0011]
[1771339397781,0.916,1967.4,1966.3,0.0011]
[1771339398204,3.398,1967.3,1966.3,0.0011]
[1771339398423,0.916,1967.3,1966.3,0.0011]
[1771339399595,1.72762846,1967.2,1966.2,0.0011]
[1771339399824,8.09462966,1967.0,1966.2,0.0011]
[1771339400041,0.45678666,1967.0,1966.2,0.0011]
[1771339400226,2.567438,1966.9,1966.2,0.0011]
[1771339400532,1.2708418,1967.2,1966.2,0.0011]
[1771339401099,4.30239166,1967.1,1966.2,0.0011]
[1771339401295,0.45678666,1966.7,1965.7,0.003]
[1771339401524,1.27122953,1966.6,1965.7,0.003]
[1771339401730,6.199435,1966.5,1965.7,0.003]
[1771339401891,1.891,1966.4,1965.7,0.003]
[1771339402227,3.049976,1966.3,1965.7,0.003]
[1771339402557,2.796855,1966.3,1965.7,0.003]
[1771339402701,2.221182,1966.3,1965.7,0.003]
[1771339402904,1.891,1966.4,1965.7,0.003]
[1771339403334,5.08391619,1967.0,1965.7,0.003]
[1771339403502,0.974,1967.0,1965.7,0.003]
[1771339403913,5.08362564,1967.3,1965.7,0.003]
[1771339403914,0.975,1967.3,1965.7,0.46993687]
[1771339404106,1.27071261,1967.4,1965.9,7.28969596]
[1771339404354,2.24471261,1967.4,1965.9,7.28969596]
[1771339404654,5.08237576,1967.6,1965.9,7.28969596]
[1771339404854,5.08237576,1967.6,1966.0,0.46693687]
[1771339405010,5.08237576,1967.6,1965.7,0.003]
[1771339405011,13.27235,1967.5,1965.7,0.003]
[1771339405207,0.45678666,1967.4,1965.7,0.003]
[1771339405562,6.914622,1967.1,1965.7,0.003]
[1771339405854,6.025917,1967.0,1965.7,0.003]
[1771339406010,8.06712666,1966.8,1965.7,0.003]
[1771339406211,2.84654,1966.7,1965.7,0.003]
[1771339406441,6.857165,1966.5,1965.7,0.003]
[1771339406615,0.1024,1967.0,1965.7,0.003]
[1771339406949,0.1024,1966.8,1965.7,0.003]
[1771339407122,3.978514,1966.7,1965.7,0.003]
[1771339407316,0.1024,1966.8,1965.7,0.003]
[1771339407532,1.27122953,1966.6,1965.4,5.08780663]
[1771339407743,1.27122953,1966.6,1965.3,11.91052301]
[1771339408347,1.27122953,1966.6,1965.2,0.916]
[1771339408551,1.27122953,1966.6,1965.2,2.18808427]
[1771339408848,1.27122953,1966.6,1965.2,2.65502114]
[1771339409046,1.27122953,1966.6,1965.3,0.46693687]
[1771339409253,1.27103563,1966.9,1965.4,6.82275909]
[1771339409556,1.27103563,1966.9,1965.3,0.46693687]
[1771339409713,0.972,1966.9,1965.4,1.27200569]
[1771339409917,9.403005,1966.8,1965.4,1.27200569]
[1771339410121,8.77578966,1966.8,1965.2,0.916]
[1771339410435,0.45678666,1966.6,1964.9,1.27232938]
[1771339410621,7.107789,1966.5,1964.9,1.73926625]
[1771339410821,2.891691,1966.5,1964.9,1.73926625]
[1771339411023,0.09348892,1965.7,1963.2,0.46693687]
[1771339411223,4.430948,1965.5,1964.0,1.27291242]
[1771339411426,1.888,1965.5,1964.0,1.27291242]
[1771339411653,11.45724969,1965.4,1964.0,1.27291242]
[1771339411850,11.45724969,1965.4,1963.9,5.22702879]
[1771339411851,0.19588892,1964.7,1963.9,0.1353791]
[1771339412060,0.19588892,1964.7,1962.9,6.82275909]
[1771339412061,0.09348892,1964.7,1962.9,6.82275909]
[1771339412218,8.228033,1964.6,1962.9,6.82275909]
[1771339412414,0.973,1964.5,1962.9,0.46693687]
[1771339412819,0.973,1964.5,1962.6,0.46693687]
[1771339412820,5.420334,1964.4,1962.6,0.46693687]
[1771339413149,3.053636,1964.2,1962.6,0.46693687]
[1771339413349,1.89,1964.1,1962.6,0.46693687]
[1771339413649,1.27291242,1964.0,1962.5,1.27388535]
[1771339413824,3.16291242,1964.0,1962.5,1.27388535]
[1771339414152,5.09164969,1964.2,1962.5,1.27388535]
[1771339414153,0.09348892,1964.2,1962.5,1.27388535]
[1771339414352,11.91364996,1964.3,1962.4,0.00727827]
[1771339414353,2.54448792,1963.4,1962.4,0.00727827]
[1771339414656,0.1024,1963.9,1962.4,1.28122377]
[1771339414657,0.975,1963.7,1962.4,1.28122377]
[1771339414823,1.892,1963.7,1962.4,1.28122654]
[1771339415223,1.892,1964.1,1962.5,0.46693687]
[1771339415435,6.10137979,1964.3,1962.6,11.154129]
[1771339415614,21.23223209,1964.2,1962.4,1.28122654]
[1771339415816,8.80824801,1964.2,1962.4,1.28122654]
[1771339416164,5.09089087,1964.3,1962.6,0.46693687]
[1771339416455,5.09089087,1964.3,1962.8,0.46693687]
[1771339417029,5.09089087,1964.3,1961.8,1.52894717]
[1771339417030,6.82275909,1963.2,1961.9,0.01]
[1771339417241,9.114609,1962.9,1961.9,1.28425728]
[1771339417441,5.42762747,1964.7,1961.9,1.28427401]
[1771339417442,1.893,1963.3,1961.9,1.28427401]
[1771339417654,1.27356087,1963.0,1961.9,1.28427401]
[1771339418233,1.27356087,1963.0,1961.9,0.01]
[1771339418430,6.284119,1962.7,1961.1,1.27479475]
[1771339418720,27.221832,1962.6,1961.1,1.27479475]
[1771339418922,0.1024,1962.7,1960.6,5.56689607]
[1771339419164,0.1024,1962.7,1960.7,0.46693687]
[1771339419165,4.869951,1962.5,1960.7,0.46693687]
[1771339419374,3.734066,1962.5,1960.7,0.46693687]
[1771339419529,1.893,1962.4,1960.7,0.46693687]
[1771339419734,1.27401518,1962.3,1960.8,1.2749898]
[1771339419958,0.977,1962.3,1960.8,1.74192667]
[1771339420532,2.24982044,1962.6,1960.9,0.46693687]
[1771339420726,1.27343113,1963.2,1961.6,7.28969596]
[1771339420925,0.09348892,1963.3,1961.4,6.82275909]
[1771339421158,0.09348892,1963.3,1961.5,15.29259387]
[1771339421323,1.27323656,1963.5,1961.2,0.917]
[1771339421324,9.883808,1963.2,1961.2,0.917]
[1771339421529,0.09348892,1963.0,1961.2,0.917]
[1771339421775,0.09348892,1963.0,1961.2,1.27472975]
[1771339421776,9.527795,1962.8,1961.2,1.27472975]
[1771339422067,5.32646,1962.6,1961.2,1.27472975]
[1771339422242,0.976,1962.5,1961.2,1.27472975]
[1771339422947,0.917,1962.6,1961.1,1.27476646]
[1771339422948,19.080989,1962.6,1961.1,1.27476646]
[1771339423257,0.09348892,1962.5,1961.1,1.27476646]
[1771339423427,0.09348892,1962.5,1960.7,1.27505482]
[1771339423428,11.396022,1962.4,1960.7,1.27505482]
[1771339423632,1.27401518,1962.3,1960.7,1.22505482]
[1771339424034,1.27401518,1962.3,1961.3,0.0011]
[1771339424259,1.894,1962.2,1961.3,0.0011]
[1771339424862,1.893,1962.2,1961.3,0.0011]
[1771339425660,5.09606074,1962.4,1961.3,0.0011]
[1771339425962,0.974,1962.4,1961.3,0.0011]
[1771339426164,1.27362575,1962.9,1961.3,0.0011]
[1771339426362,1.892,1962.5,1961.3,0.0011]
[1771339427773,3.458906,1962.3,1961.3,0.0011]
[1771339428637,2.6592,1962.2,1961.3,0.0011]
[1771339428841,0.972,1962.1,1961.3,0.0011]
[1771339429046,3.007839,1962.2,1961.3,0.0011]
[1771339429245,0.972,1962.0,1961.3,0.0011]
[1771339429462,0.971,1962.0,1961.3,0.0011]
[1771339429664,1.27408011,1962.2,1961.3,0.0011]
[1771339430247,0.97,1962.3,1961.3,0.0011]
[1771339430579,2.24405955,1962.3,1961.3,0.0011]
[1771339431271,3.087638,1962.0,1960.6,1.27511986]
[1771339431685,1.27433989,1961.8,1960.6,1.27511986]
[1771339432391,1.27401518,1962.3,1961.2,0.003]
[1771339432610,0.969,1962.2,1961.2,0.003]
[1771339434188,1.27414504,1962.1,1961.2,0.003]